[Event "Titled Tuesday Blitz August 22 Late 2023"]
[White "Hakobyan, Aram"]
[Black "Sala, Giulia"]
[WhiteFideId "13306677"]
[BlackFideId "2840451"]
[WhiteElo "2987"]
[BlackElo "2328"]
[Result "1-0"]
[Round "5"]
[TimeControl "180+1"]
[Date "2023.08.22"]
[WhiteClock "0:01:42"]
[BlackClock "0:00:03"]
[Board "74"]

1. d4 {[%clk 0:03:00]}  Nf6 {[%clk 0:02:58]} 2. c4 {[%clk 0:03:01]}  e6 {[%clk 0:02:57]} 3. Nc3 {[%clk 0:03:02]}  Bb4 {[%clk 0:02:57]} 4. e3 {[%clk 0:03:03]}  d5 {[%clk 0:02:55]} 5. a3 {[%clk 0:03:03]}  Bxc3+ {[%clk 0:02:50]} 6. bxc3 {[%clk 0:03:04]}  O-O {[%clk 0:02:47]} 7. cxd5 {[%clk 0:03:05]}  exd5 {[%clk 0:02:45]} 8. Bd3 {[%clk 0:03:05]}  c5 {[%clk 0:02:37]} 9. Ne2 {[%clk 0:03:06]}  Nc6 {[%clk 0:02:37]} 10. O-O {[%clk 0:03:06]}  cxd4 {[%clk 0:02:37]} 11. cxd4 {[%clk 0:03:07]}  Be6 {[%clk 0:02:33]} 12. f3 {[%clk 0:03:07]}  Re8 {[%clk 0:02:30]} 13. Bb2 {[%clk 0:03:06]}  a6 {[%clk 0:02:28]} 14. Ng3 {[%clk 0:03:07]}  Rc8 {[%clk 0:02:28]} 15. Qd2 {[%clk 0:03:07]}  Na5 {[%clk 0:02:27]} 16. Rae1 {[%clk 0:03:07]}  Nc4 {[%clk 0:02:26]} 17. Bxc4 {[%clk 0:03:08]}  Rxc4 {[%clk 0:02:25]} 18. e4 {[%clk 0:03:09]}  Qc7 {[%clk 0:02:10]} 19. Rf2 {[%clk 0:02:58]}  Rc8 {[%clk 0:02:09]} 20. e5 {[%clk 0:02:57]}  Ne8 {[%clk 0:02:04]} 21. f4 {[%clk 0:02:50]}  Rc2 {[%clk 0:02:02]} 22. Qe3 {[%clk 0:02:48]}  Rxf2 {[%clk 0:02:01]} 23. Qxf2 {[%clk 0:02:49]}  g6 {[%clk 0:01:58]} 24. f5 {[%clk 0:02:45]}  gxf5 {[%clk 0:01:57]} 25. Nxf5 {[%clk 0:02:46]}  Bxf5 {[%clk 0:01:58]} 26. Qxf5 {[%clk 0:02:47]}  Ng7 {[%clk 0:01:58]} 27. Qg4 {[%clk 0:02:45]}  Re8 {[%clk 0:01:54]} 28. Bc1 {[%clk 0:02:39]}  Re6 {[%clk 0:01:49]} 29. Bf4 {[%clk 0:02:32]}  Rg6 {[%clk 0:01:31]} 30. Qf3 {[%clk 0:02:27]}  Ne6 {[%clk 0:01:29]} 31. Be3 {[%clk 0:02:21]}  Qc3 {[%clk 0:01:13]} 32. Rf1 {[%clk 0:02:19]}  Qc7 {[%clk 0:01:08]} 33. Qxd5 {[%clk 0:02:18]}  h5 {[%clk 0:00:41]} 34. Qf3 {[%clk 0:02:16]}  h4 {[%clk 0:00:41]} 35. d5 {[%clk 0:02:11]}  Ng7 {[%clk 0:00:39]} 36. e6 {[%clk 0:02:07]}  fxe6 {[%clk 0:00:23]} 37. dxe6 {[%clk 0:02:03]}  Nxe6 {[%clk 0:00:22]} 38. Bd4 {[%clk 0:01:55]}  Qe7 {[%clk 0:00:13]} 39. Qh5 {[%clk 0:01:46]}  Qh7 {[%clk 0:00:09]} 40. Qe5 {[%clk 0:01:41]}  h3 {[%clk 0:00:05]} 41. Qb8+ {[%clk 0:01:42]}  Nf8 {[%clk 0:00:03]} 42. Qxf8# {[%clk 0:01:42]} 1-0


[Site "https://www.chess.com"]

[Event "Titled Tuesday Blitz August 22 Late 2023"]
[White "Janaszak, Dawid"]
[Black "Mekhitarian, Krikor Sevag"]
[WhiteFideId "1119206"]
[BlackFideId "2107660"]
[WhiteElo "2508"]
[BlackElo "2843"]
[Result "0-1"]
[Round "5"]
[TimeControl "180+1"]
[Date "2023.08.22"]
[WhiteClock "0:00:01"]
[BlackClock "0:00:02"]
[Board "75"]

1. e4 {[%clk 0:03:00]}  e6 {[%clk 0:02:59]} 2. b3 {[%clk 0:02:59]}  d5 {[%clk 0:02:58]} 3. Bb2 {[%clk 0:02:59]}  Nf6 {[%clk 0:02:55]} 4. d3 {[%clk 0:02:59]}  dxe4 {[%clk 0:02:45]} 5. Nd2 {[%clk 0:02:59]}  Nc6 {[%clk 0:02:35]} 6. a3 {[%clk 0:02:49]}  a5 {[%clk 0:02:22]} 7. dxe4 {[%clk 0:02:43]}  Bc5 {[%clk 0:02:22]} 8. Bd3 {[%clk 0:02:23]}  e5 {[%clk 0:02:19]} 9. Ngf3 {[%clk 0:02:20]}  Qe7 {[%clk 0:02:18]} 10. O-O {[%clk 0:02:17]}  O-O {[%clk 0:02:13]} 11. h3 {[%clk 0:02:12]}  Rd8 {[%clk 0:02:06]} 12. Nc4 {[%clk 0:02:02]}  Nd4 {[%clk 0:01:57]} 13. Nfxe5 {[%clk 0:01:56]}  Be6 {[%clk 0:01:46]} 14. c3 {[%clk 0:01:46]}  Nb5 {[%clk 0:01:15]} 15. Qc2 {[%clk 0:01:33]}  c6 {[%clk 0:01:09]} 16. b4 {[%clk 0:01:27]}  axb4 {[%clk 0:01:08]} 17. axb4 {[%clk 0:01:27]}  Ba7 {[%clk 0:01:07]} 18. Kh1 {[%clk 0:01:17]}  Nh5 {[%clk 0:01:06]} 19. Bc1 {[%clk 0:00:55]}  Qf6 {[%clk 0:00:53]} 20. Be2 {[%clk 0:00:24]}  Nf4 {[%clk 0:00:50]} 21. Bxf4 {[%clk 0:00:19]}  Qxf4 {[%clk 0:00:51]} 22. Qc1 {[%clk 0:00:14]}  Qxe4 {[%clk 0:00:43]} 23. Bf3 {[%clk 0:00:13]}  Qh4 {[%clk 0:00:43]} 24. Ne3 {[%clk 0:00:08]}  Bxh3 {[%clk 0:00:33]} 25. gxh3 {[%clk 0:00:09]}  Qxh3+ {[%clk 0:00:33]} 26. Kg1 {[%clk 0:00:09]}  Qe6 {[%clk 0:00:18]} 27. Bg4 {[%clk 0:00:10]}  Qxe5 {[%clk 0:00:17]} 28. c4 {[%clk 0:00:09]}  Nd4 {[%clk 0:00:15]} 29. Ra5 {[%clk 0:00:09]}  Qe7 {[%clk 0:00:13]} 30. Qa1 {[%clk 0:00:09]}  Nb3 {[%clk 0:00:10]} 31. Qe5 {[%clk 0:00:06]}  Qxe5 {[%clk 0:00:09]} 32. Rxe5 {[%clk 0:00:07]}  Bd4 {[%clk 0:00:08]} 33. Re7 {[%clk 0:00:07]}  Rab8 {[%clk 0:00:08]} 34. Nf5 {[%clk 0:00:07]}  Bf6 {[%clk 0:00:08]} 35. Rc7 {[%clk 0:00:07]}  Nd4 {[%clk 0:00:08]} 36. Nxd4 {[%clk 0:00:06]}  Rxd4 {[%clk 0:00:09]} 37. Bc8 {[%clk 0:00:05]}  Rxc4 {[%clk 0:00:07]} 38. Bxb7 {[%clk 0:00:04]}  Rxb4 {[%clk 0:00:06]} 39. Bxc6 {[%clk 0:00:05]}  Rc4 {[%clk 0:00:07]} 40. Rd1 {[%clk 0:00:04]}  g6 {[%clk 0:00:06]} 41. Rdd7 {[%clk 0:00:04]}  Rf8 {[%clk 0:00:06]} 42. Bd5 {[%clk 0:00:04]}  Rxc7 {[%clk 0:00:06]} 43. Rxc7 {[%clk 0:00:05]}  Kg7 {[%clk 0:00:06]} 44. Kg2 {[%clk 0:00:06]}  Be5 {[%clk 0:00:07]} 45. Ra7 {[%clk 0:00:05]}  Kf6 {[%clk 0:00:07]} 46. Ra8 {[%clk 0:00:06]}  Rxa8 {[%clk 0:00:05]} 47. Bxa8 {[%clk 0:00:07]}  Kg5 {[%clk 0:00:05]} 48. Bd5 {[%clk 0:00:06]}  f5 {[%clk 0:00:05]} 49. Bg8 {[%clk 0:00:06]}  h5 {[%clk 0:00:05]} 50. Bh7 {[%clk 0:00:07]}  Kh6 {[%clk 0:00:05]} 51. Bg8 {[%clk 0:00:07]}  g5 {[%clk 0:00:06]} 52. Bf7 {[%clk 0:00:06]}  g4 {[%clk 0:00:05]} 53. Be6 {[%clk 0:00:05]}  Kg5 {[%clk 0:00:05]} 54. Bd7 {[%clk 0:00:05]}  h4 {[%clk 0:00:03]} 55. f3 {[%clk 0:00:04]}  h3+ {[%clk 0:00:04]} 56. Kf2 {[%clk 0:00:03]}  g3+ {[%clk 0:00:01]} 57. Kg1 {[%clk 0:00:03]}  Bd4+ {[%clk 0:00:02]} 58. Kf1 {[%clk 0:00:01]}  g2+ {[%clk 0:00:02]} 0-1


[Site "https://www.chess.com"]

[Event "Titled Tuesday Blitz August 22 Late 2023"]
[White "Wieczorek, Oskar"]
[Black "Rizzo, Tobias"]
[WhiteFideId "1133950"]
[BlackFideId "30942691"]
[WhiteElo "2741"]
[BlackElo "2498"]
[Result "1-0"]
[Round "5"]
[TimeControl "180+1"]
[Date "2023.08.22"]
[WhiteClock "0:00:49"]
[BlackClock "0:00:00"]
[Board "77"]

1. e4 {[%clk 0:03:00]}  c5 {[%clk 0:02:57]} 2. Nf3 {[%clk 0:03:00]}  e6 {[%clk 0:02:56]} 3. g3 {[%clk 0:03:00]}  Nf6 {[%clk 0:02:56]} 4. e5 {[%clk 0:03:00]}  Nd5 {[%clk 0:02:57]} 5. Bg2 {[%clk 0:03:00]}  Nc6 {[%clk 0:02:57]} 6. O-O {[%clk 0:03:00]}  Be7 {[%clk 0:02:56]} 7. Re1 {[%clk 0:02:55]}  O-O {[%clk 0:02:50]} 8. d4 {[%clk 0:02:51]}  cxd4 {[%clk 0:02:48]} 9. Nxd4 {[%clk 0:02:52]}  Nb6 {[%clk 0:02:43]} 10. Nb5 {[%clk 0:02:48]}  f6 {[%clk 0:02:38]} 11. exf6 {[%clk 0:02:42]}  Bxf6 {[%clk 0:02:39]} 12. Nd6 {[%clk 0:02:41]}  Qe7 {[%clk 0:02:31]} 13. Be3 {[%clk 0:02:28]}  Bxb2 {[%clk 0:02:25]} 14. Nxc8 {[%clk 0:01:49]}  Raxc8 {[%clk 0:02:15]} 15. Nd2 {[%clk 0:01:50]}  Bxa1 {[%clk 0:02:01]} 16. Qxa1 {[%clk 0:01:50]}  d5 {[%clk 0:01:54]} 17. Bxb6 {[%clk 0:01:44]}  axb6 {[%clk 0:01:53]} 18. Bxd5 {[%clk 0:01:45]}  Nd8 {[%clk 0:01:49]} 19. Bb3 {[%clk 0:01:41]}  Rc6 {[%clk 0:01:10]} 20. Ne4 {[%clk 0:01:29]}  Kh8 {[%clk 0:00:52]} 21. h4 {[%clk 0:01:27]}  b5 {[%clk 0:00:42]} 22. Qd1 {[%clk 0:01:17]}  Nf7 {[%clk 0:00:30]} 23. Qh5 {[%clk 0:01:17]}  Nd6 {[%clk 0:00:22]} 24. Ng5 {[%clk 0:01:16]}  g6 {[%clk 0:00:17]} 25. Qe2 {[%clk 0:01:07]}  Nf5 {[%clk 0:00:10]} 26. Qxb5 {[%clk 0:01:06]}  e5 {[%clk 0:00:07]} 27. Rxe5 {[%clk 0:01:02]}  Qd6 {[%clk 0:00:00]} 28. Qxb7 {[%clk 0:00:49]} 1-0


[Site "https://www.chess.com"]

[Event "Titled Tuesday Blitz August 22 Late 2023"]
[White "Dimitrov, Atanas"]
[Black "Urbina Perez, Juan Antonio"]
[WhiteFideId "2901315"]
[BlackFideId "2217368"]
[WhiteElo "2715"]
[BlackElo "2487"]
[Result "1-0"]
[Round "5"]
[TimeControl "180+1"]
[Date "2023.08.22"]
[WhiteClock "0:00:05"]
[BlackClock "0:00:00"]
[Board "79"]

1. Nf3 {[%clk 0:03:00]}  d5 {[%clk 0:02:55]} 2. b3 {[%clk 0:03:00]}  Bf5 {[%clk 0:02:53]} 3. Bb2 {[%clk 0:03:00]}  e6 {[%clk 0:02:53]} 4. c4 {[%clk 0:02:59]}  c6 {[%clk 0:02:53]} 5. e3 {[%clk 0:02:59]}  Nf6 {[%clk 0:02:53]} 6. Nc3 {[%clk 0:02:59]}  h6 {[%clk 0:02:53]} 7. Be2 {[%clk 0:02:59]}  Bd6 {[%clk 0:02:53]} 8. O-O {[%clk 0:02:56]}  O-O {[%clk 0:02:53]} 9. h3 {[%clk 0:02:57]}  Qe7 {[%clk 0:02:53]} 10. d3 {[%clk 0:02:53]}  Ba3 {[%clk 0:02:51]} 11. Qc1 {[%clk 0:02:51]}  Bxb2 {[%clk 0:02:51]} 12. Qxb2 {[%clk 0:02:52]}  Nbd7 {[%clk 0:02:51]} 13. b4 {[%clk 0:02:52]}  a6 {[%clk 0:02:48]} 14. a4 {[%clk 0:02:50]}  e5 {[%clk 0:02:48]} 15. cxd5 {[%clk 0:02:48]}  cxd5 {[%clk 0:02:47]} 16. Rac1 {[%clk 0:02:47]}  Rac8 {[%clk 0:02:46]} 17. a5 {[%clk 0:02:40]}  Rc7 {[%clk 0:02:33]} 18. Na4 {[%clk 0:02:39]}  Rfc8 {[%clk 0:02:32]} 19. Rxc7 {[%clk 0:02:37]}  Rxc7 {[%clk 0:02:33]} 20. Rb1 {[%clk 0:02:01]}  Kh7 {[%clk 0:02:21]} 21. b5 {[%clk 0:01:52]}  axb5 {[%clk 0:02:13]} 22. Qxb5 {[%clk 0:01:52]}  Qa3 {[%clk 0:02:13]} 23. Bf1 {[%clk 0:01:44]}  Qa2 {[%clk 0:01:42]} 24. Rb2 {[%clk 0:01:31]}  Qa1 {[%clk 0:01:38]} 25. Rb1 {[%clk 0:01:30]}  Qa2 {[%clk 0:01:39]} 26. Qb3 {[%clk 0:00:59]}  Qxb3 {[%clk 0:01:27]} 27. Rxb3 {[%clk 0:01:00]}  Rc1 {[%clk 0:01:27]} 28. g4 {[%clk 0:01:00]}  Be6 {[%clk 0:01:19]} 29. Rb4 {[%clk 0:00:57]}  Ra1 {[%clk 0:01:11]} 30. Kg2 {[%clk 0:00:56]}  g5 {[%clk 0:01:04]} 31. d4 {[%clk 0:00:51]}  e4 {[%clk 0:00:52]} 32. Nd2 {[%clk 0:00:51]}  Kg7 {[%clk 0:00:49]} 33. Nb3 {[%clk 0:00:47]}  Ra2 {[%clk 0:00:47]} 34. Bb5 {[%clk 0:00:36]}  h5 {[%clk 0:00:43]} 35. gxh5 {[%clk 0:00:36]}  g4 {[%clk 0:00:43]} 36. hxg4 {[%clk 0:00:33]}  Nxg4 {[%clk 0:00:42]} 37. Bxd7 {[%clk 0:00:29]}  Bxd7 {[%clk 0:00:43]} 38. Nac5 {[%clk 0:00:29]}  Rxf2+ {[%clk 0:00:39]} 39. Kg1 {[%clk 0:00:29]}  Bf5 {[%clk 0:00:32]} 40. Rxb7 {[%clk 0:00:26]}  Ra2 {[%clk 0:00:27]} 41. a6 {[%clk 0:00:27]}  Nxe3 {[%clk 0:00:24]} 42. a7 {[%clk 0:00:21]}  Ng4 {[%clk 0:00:04]} 43. Nc1 {[%clk 0:00:07]}  Ra1 {[%clk 0:00:02]} 44. Nb3 {[%clk 0:00:06]}  Ra3 {[%clk 0:00:02]} 45. Kg2 {[%clk 0:00:06]}  e3 {[%clk 0:00:02]} 46. Kg3 {[%clk 0:00:05]}  Nf6 {[%clk 0:00:02]} 47. Kf4 {[%clk 0:00:05]}  Be6 {[%clk 0:00:02]} 48. Kxe3 {[%clk 0:00:04]}  Nxh5 {[%clk 0:00:03]} 49. Kd3 {[%clk 0:00:04]}  Nf6 {[%clk 0:00:03]} 50. Kc3 {[%clk 0:00:05]}  Ne4+ {[%clk 0:00:03]} 51. Kb2 {[%clk 0:00:05]}  Ra6 {[%clk 0:00:01]} 52. Nd3 {[%clk 0:00:05]}  Nd6 {[%clk 0:00:01]} 53. Rc7 {[%clk 0:00:05]}  Nc4+ {[%clk 0:00:02]} 54. Kc3 {[%clk 0:00:05]}  Ra3 {[%clk 0:00:00]} 55. Nc5 {[%clk 0:00:05]} 1-0


[Site "https://www.chess.com"]

[Event "Titled Tuesday Blitz August 22 Late 2023"]
[White "Cuenca Jimenez, Jose Fernando"]
[Black "Sivakumar, Shaashwath"]
[WhiteFideId "2255570"]
[BlackFideId "30912156"]
[WhiteElo "2679"]
[BlackElo "2482"]
[Result "1-0"]
[Round "5"]
[TimeControl "180+1"]
[Date "2023.08.22"]
[WhiteClock "0:01:33"]
[BlackClock "0:00:07"]
[Board "81"]

1. c4 {[%clk 0:03:00]}  c6 {[%clk 0:01:56]} 2. e4 {[%clk 0:02:53]}  d5 {[%clk 0:01:56]} 3. exd5 {[%clk 0:02:54]}  cxd5 {[%clk 0:01:56]} 4. cxd5 {[%clk 0:02:54]}  Nf6 {[%clk 0:01:56]} 5. Nc3 {[%clk 0:02:55]}  Nxd5 {[%clk 0:01:56]} 6. Nf3 {[%clk 0:02:55]}  Nc6 {[%clk 0:01:51]} 7. Bb5 {[%clk 0:02:56]}  e6 {[%clk 0:01:44]} 8. O-O {[%clk 0:02:55]}  Be7 {[%clk 0:01:44]} 9. d4 {[%clk 0:02:55]}  O-O {[%clk 0:01:44]} 10. Re1 {[%clk 0:02:53]}  Bd7 {[%clk 0:01:33]} 11. a3 {[%clk 0:02:32]}  Rc8 {[%clk 0:01:11]} 12. Ne4 {[%clk 0:02:30]}  Nf6 {[%clk 0:01:07]} 13. Nc3 {[%clk 0:02:27]}  Qc7 {[%clk 0:00:52]} 14. Bg5 {[%clk 0:02:17]}  Rfd8 {[%clk 0:00:50]} 15. Qe2 {[%clk 0:01:55]}  Qb6 {[%clk 0:00:37]} 16. d5 {[%clk 0:01:49]}  Nxd5 {[%clk 0:00:15]} 17. Nxd5 {[%clk 0:01:41]}  exd5 {[%clk 0:00:07]} 18. Bxc6 {[%clk 0:01:33]} 1-0


[Site "https://www.chess.com"]

[Event "Titled Tuesday Blitz August 22 Late 2023"]
[White "Almiron, Antonio"]
[Black "Mindhunter08"]
[WhiteFideId "3701166"]
[WhiteElo "2632"]
[BlackElo "2469"]
[Result "1-0"]
[Round "5"]
[TimeControl "180+1"]
[Date "2023.08.22"]
[WhiteClock "0:00:17"]
[BlackClock "0:00:01"]
[Board "87"]

1. e4 {[%clk 0:02:57]}  e5 {[%clk 0:02:58]} 2. Nf3 {[%clk 0:02:57]}  Nc6 {[%clk 0:02:58]} 3. Bb5 {[%clk 0:02:56]}  a6 {[%clk 0:02:59]} 4. Ba4 {[%clk 0:02:56]}  Nf6 {[%clk 0:02:59]} 5. O-O {[%clk 0:02:56]}  Be7 {[%clk 0:03:00]} 6. Re1 {[%clk 0:02:56]}  b5 {[%clk 0:03:01]} 7. Bb3 {[%clk 0:02:56]}  d6 {[%clk 0:03:01]} 8. c3 {[%clk 0:02:56]}  O-O {[%clk 0:03:02]} 9. h3 {[%clk 0:02:56]}  Nb8 {[%clk 0:03:03]} 10. d4 {[%clk 0:02:56]}  Nbd7 {[%clk 0:03:03]} 11. Nbd2 {[%clk 0:02:56]}  Bb7 {[%clk 0:03:04]} 12. Bc2 {[%clk 0:02:56]}  Re8 {[%clk 0:03:05]} 13. Nf1 {[%clk 0:02:57]}  Bf8 {[%clk 0:03:06]} 14. Ng3 {[%clk 0:02:56]}  g6 {[%clk 0:03:06]} 15. Bd2 {[%clk 0:02:56]}  Bg7 {[%clk 0:03:05]} 16. Qc1 {[%clk 0:02:56]}  c5 {[%clk 0:02:56]} 17. d5 {[%clk 0:02:51]}  c4 {[%clk 0:02:56]} 18. b4 {[%clk 0:02:47]}  a5 {[%clk 0:02:52]} 19. a4 {[%clk 0:02:41]}  axb4 {[%clk 0:02:45]} 20. cxb4 {[%clk 0:02:42]}  bxa4 {[%clk 0:02:28]} 21. Bxa4 {[%clk 0:02:43]}  Qc7 {[%clk 0:02:29]} 22. Bc3 {[%clk 0:02:29]}  Rec8 {[%clk 0:02:20]} 23. Qe3 {[%clk 0:02:22]}  Nb6 {[%clk 0:02:19]} 24. Bb5 {[%clk 0:02:15]}  Rxa1 {[%clk 0:02:05]} 25. Rxa1 {[%clk 0:02:16]}  Nbxd5 {[%clk 0:02:06]} 26. exd5 {[%clk 0:02:12]}  Nxd5 {[%clk 0:02:07]} 27. Qc1 {[%clk 0:02:09]}  Nxc3 {[%clk 0:02:05]} 28. Qxc3 {[%clk 0:02:09]}  d5 {[%clk 0:02:00]} 29. Rc1 {[%clk 0:01:52]}  d4 {[%clk 0:01:43]} 30. Qxc4 {[%clk 0:00:34]}  Qb6 {[%clk 0:01:37]} 31. Qxc8+ {[%clk 0:00:34]}  Bxc8 {[%clk 0:01:38]} 32. Rxc8+ {[%clk 0:00:34]}  Bf8 {[%clk 0:01:39]} 33. Bc4 {[%clk 0:00:34]}  Qxb4 {[%clk 0:01:22]} 34. Ng5 {[%clk 0:00:20]}  Qe1+ {[%clk 0:00:59]} 35. Kh2 {[%clk 0:00:20]}  Qxf2 {[%clk 0:00:54]} 36. Nxf7 {[%clk 0:00:20]}  Kg7 {[%clk 0:00:49]} 37. Rc7 {[%clk 0:00:20]}  e4 {[%clk 0:00:17]} 38. Ng5+ {[%clk 0:00:17]}  Kh6 {[%clk 0:00:13]} 39. Nf7+ {[%clk 0:00:17]}  Kg7 {[%clk 0:00:13]} 40. Ne5+ {[%clk 0:00:17]}  Kh8 {[%clk 0:00:10]} 41. Rf7 {[%clk 0:00:18]}  Qc2 {[%clk 0:00:03]} 42. Rxf8+ {[%clk 0:00:18]}  Kg7 {[%clk 0:00:04]} 43. Rf7+ {[%clk 0:00:17]}  Kh6 {[%clk 0:00:04]} 44. Ng4+ {[%clk 0:00:16]}  Kg5 {[%clk 0:00:05]} 45. Bd5 {[%clk 0:00:14]}  h5 {[%clk 0:00:02]} 46. Nxe4+ {[%clk 0:00:14]}  Qxe4 {[%clk 0:00:01]} 47. Bxe4 {[%clk 0:00:14]}  hxg4 {[%clk 0:00:01]} 48. hxg4 {[%clk 0:00:15]}  d3 {[%clk 0:00:02]} 49. Bxd3 {[%clk 0:00:15]}  Kh4 {[%clk 0:00:02]} 50. Bxg6 {[%clk 0:00:15]}  Kg5 {[%clk 0:00:03]} 51. Bc2 {[%clk 0:00:15]}  Kh4 {[%clk 0:00:04]} 52. Rf3 {[%clk 0:00:16]}  Kg5 {[%clk 0:00:04]} 53. Rh3 {[%clk 0:00:16]}  Kf4 {[%clk 0:00:05]} 54. Rh4 {[%clk 0:00:16]}  Kg5 {[%clk 0:00:01]} 55. Kh3 {[%clk 0:00:17]} 1-0


[Site "https://www.chess.com"]

[Event "Titled Tuesday Blitz August 22 Late 2023"]
[White "Garcia Blanco, Omar"]
[Black "Moore, Nicholas"]
[WhiteFideId "2287153"]
[BlackFideId "4303709"]
[WhiteElo "2631"]
[BlackElo "2466"]
[Result "0-1"]
[Round "5"]
[TimeControl "180+1"]
[Date "2023.08.22"]
[WhiteClock "0:00:08"]
[BlackClock "0:00:13"]
[Board "88"]

1. e4 {[%clk 0:02:56]}  c5 {[%clk 0:02:58]} 2. c3 {[%clk 0:02:56]}  Nf6 {[%clk 0:02:58]} 3. e5 {[%clk 0:02:55]}  Nd5 {[%clk 0:02:58]} 4. d4 {[%clk 0:02:56]}  cxd4 {[%clk 0:02:59]} 5. Nf3 {[%clk 0:02:57]}  e6 {[%clk 0:02:58]} 6. cxd4 {[%clk 0:02:57]}  d6 {[%clk 0:02:57]} 7. Bc4 {[%clk 0:02:57]}  Be7 {[%clk 0:02:57]} 8. O-O {[%clk 0:02:57]}  O-O {[%clk 0:02:55]} 9. Bd2 {[%clk 0:02:55]}  Bd7 {[%clk 0:02:53]} 10. Nc3 {[%clk 0:02:55]}  Nxc3 {[%clk 0:02:51]} 11. Bxc3 {[%clk 0:02:56]}  Bc6 {[%clk 0:02:51]} 12. Qe2 {[%clk 0:02:55]}  Nd7 {[%clk 0:02:50]} 13. Rad1 {[%clk 0:02:51]}  Qc7 {[%clk 0:02:28]} 14. Bd3 {[%clk 0:02:41]}  dxe5 {[%clk 0:02:21]} 15. dxe5 {[%clk 0:02:40]}  Nc5 {[%clk 0:02:11]} 16. Bb1 {[%clk 0:02:29]}  Rfd8 {[%clk 0:02:04]} 17. h4 {[%clk 0:02:27]}  Rxd1 {[%clk 0:02:02]} 18. Rxd1 {[%clk 0:02:28]}  Rd8 {[%clk 0:02:02]} 19. Nd4 {[%clk 0:01:51]}  Ba4 {[%clk 0:01:29]} 20. Rc1 {[%clk 0:01:31]}  Qb6 {[%clk 0:01:18]} 21. h5 {[%clk 0:01:20]}  Be8 {[%clk 0:01:07]} 22. b3 {[%clk 0:00:49]}  a6 {[%clk 0:01:00]} 23. Qe1 {[%clk 0:00:45]}  Qa7 {[%clk 0:00:51]} 24. Rd1 {[%clk 0:00:44]}  Qb8 {[%clk 0:00:50]} 25. Qe2 {[%clk 0:00:40]}  Rc8 {[%clk 0:00:48]} 26. Bb2 {[%clk 0:00:39]}  Nd7 {[%clk 0:00:45]} 27. Nf3 {[%clk 0:00:38]}  Nf8 {[%clk 0:00:43]} 28. Be4 {[%clk 0:00:33]}  Bc6 {[%clk 0:00:41]} 29. Nd4 {[%clk 0:00:31]}  Bxe4 {[%clk 0:00:40]} 30. Qxe4 {[%clk 0:00:32]}  Rd8 {[%clk 0:00:36]} 31. Rc1 {[%clk 0:00:27]}  Rd5 {[%clk 0:00:36]} 32. Nf3 {[%clk 0:00:25]}  Qd8 {[%clk 0:00:35]} 33. Kh2 {[%clk 0:00:21]}  h6 {[%clk 0:00:35]} 34. Qg4 {[%clk 0:00:20]}  Nd7 {[%clk 0:00:35]} 35. Re1 {[%clk 0:00:19]}  Qb8 {[%clk 0:00:34]} 36. Re2 {[%clk 0:00:18]}  Bc5 {[%clk 0:00:34]} 37. Qg3 {[%clk 0:00:18]}  Kh8 {[%clk 0:00:33]} 38. Nd2 {[%clk 0:00:18]}  Bd4 {[%clk 0:00:28]} 39. Bxd4 {[%clk 0:00:18]}  Rxd4 {[%clk 0:00:28]} 40. Nc4 {[%clk 0:00:18]}  Rd5 {[%clk 0:00:27]} 41. Nd6 {[%clk 0:00:19]}  Kg8 {[%clk 0:00:24]} 42. Qf4 {[%clk 0:00:17]}  Nxe5 {[%clk 0:00:22]} 43. Rxe5 {[%clk 0:00:16]}  Qxd6 {[%clk 0:00:22]} 44. Re4 {[%clk 0:00:16]}  Qxf4+ {[%clk 0:00:20]} 45. Rxf4 {[%clk 0:00:17]}  Rd2 {[%clk 0:00:20]} 46. Rb4 {[%clk 0:00:15]}  b5 {[%clk 0:00:20]} 47. a4 {[%clk 0:00:15]}  bxa4 {[%clk 0:00:16]} 48. Rxa4 {[%clk 0:00:16]}  Rxf2 {[%clk 0:00:16]} 49. Rxa6 {[%clk 0:00:15]}  Rf5 {[%clk 0:00:16]} 50. g4 {[%clk 0:00:16]}  Rf3 {[%clk 0:00:16]} 51. Rb6 {[%clk 0:00:15]}  Kh7 {[%clk 0:00:15]} 52. Rb7 {[%clk 0:00:15]}  Kg8 {[%clk 0:00:13]} 53. Kg2 {[%clk 0:00:15]}  Rf4 {[%clk 0:00:11]} 54. Kg3 {[%clk 0:00:16]}  e5 {[%clk 0:00:11]} 55. b4 {[%clk 0:00:14]}  Kf8 {[%clk 0:00:10]} 56. b5 {[%clk 0:00:15]}  Rb4 {[%clk 0:00:10]} 57. Rb8+ {[%clk 0:00:13]}  Ke7 {[%clk 0:00:10]} 58. b6 {[%clk 0:00:14]}  Kf6 {[%clk 0:00:11]} 59. Kf3 {[%clk 0:00:11]}  Kg5 {[%clk 0:00:11]} 60. b7 {[%clk 0:00:10]}  e4+ {[%clk 0:00:08]} 61. Ke3 {[%clk 0:00:09]}  Kxg4 {[%clk 0:00:08]} 62. Rg8 {[%clk 0:00:09]}  Rxb7 {[%clk 0:00:08]} 63. Rxg7+ {[%clk 0:00:09]}  Kf5 {[%clk 0:00:08]} 64. Rh7 {[%clk 0:00:08]}  Rb3+ {[%clk 0:00:08]} 65. Ke2 {[%clk 0:00:08]}  f6 {[%clk 0:00:08]} 66. Rxh6 {[%clk 0:00:08]}  Rh3 {[%clk 0:00:07]} 67. Rh8 {[%clk 0:00:07]}  Kf4 {[%clk 0:00:07]} 68. h6 {[%clk 0:00:07]}  Rh2+ {[%clk 0:00:08]} 69. Kd1 {[%clk 0:00:07]}  e3 {[%clk 0:00:06]} 70. h7 {[%clk 0:00:06]}  f5 {[%clk 0:00:07]} 71. Kc1 {[%clk 0:00:03]}  Kf3 {[%clk 0:00:07]} 72. Rf8 {[%clk 0:00:03]}  Rxh7 {[%clk 0:00:07]} 73. Rxf5+ {[%clk 0:00:03]}  Ke2 {[%clk 0:00:08]} 74. Re5 {[%clk 0:00:02]}  Rd7 {[%clk 0:00:08]} 75. Kc2 {[%clk 0:00:02]}  Kf2 {[%clk 0:00:08]} 76. Rf5+ {[%clk 0:00:02]}  Ke1 {[%clk 0:00:09]} 77. Re5 {[%clk 0:00:03]}  e2 {[%clk 0:00:09]} 78. Kc1 {[%clk 0:00:03]}  Rc7+ {[%clk 0:00:09]} 79. Kb2 {[%clk 0:00:04]}  Kd2 {[%clk 0:00:09]} 80. Rd5+ {[%clk 0:00:04]}  Ke3 {[%clk 0:00:10]} 81. Re5+ {[%clk 0:00:05]}  Kd3 {[%clk 0:00:10]} 82. Re8 {[%clk 0:00:04]}  Rc4 {[%clk 0:00:10]} 83. Kb3 {[%clk 0:00:01]}  Re4 {[%clk 0:00:10]} 84. Rd8+ {[%clk 0:00:02]}  Ke3 {[%clk 0:00:10]} 85. Rc8 {[%clk 0:00:01]}  e1=Q {[%clk 0:00:11]} 86. Rc3+ {[%clk 0:00:01]}  Qxc3+ {[%clk 0:00:10]} 87. Kxc3 {[%clk 0:00:01]}  Rd4 {[%clk 0:00:11]} 88. Kb3 {[%clk 0:00:02]}  Rd8 {[%clk 0:00:11]} 89. Kb2 {[%clk 0:00:03]}  Kd3 {[%clk 0:00:11]} 90. Kb3 {[%clk 0:00:04]}  Rb8+ {[%clk 0:00:11]} 91. Ka3 {[%clk 0:00:05]}  Kc3 {[%clk 0:00:12]} 92. Ka4 {[%clk 0:00:06]}  Rb1 {[%clk 0:00:11]} 93. Ka5 {[%clk 0:00:07]}  Kc4 {[%clk 0:00:11]} 94. Ka6 {[%clk 0:00:07]}  Kc5 {[%clk 0:00:12]} 95. Ka7 {[%clk 0:00:08]}  Kc6 {[%clk 0:00:12]} 96. Ka8 {[%clk 0:00:07]}  Kc7 {[%clk 0:00:12]} 97. Ka7 {[%clk 0:00:08]}  Ra1# {[%clk 0:00:13]} 0-1


[Site "https://www.chess.com"]